[Event "*** SCC Grand Prix: Titled Tuesday Blitz"]
[Site "Chess.com"]
[Date "2020.06.09"]
[Round "1"]
[White "Igor_Lysyj"]
[Black "AradNazari"]
[Result "1-0"]
[WhiteElo "2764"]
[BlackElo "2407"]
[TimeControl "180+1"]
[EndTime "9:09:17 PDT"]
[Termination "Igor_Lysyj won by checkmate"]

1. d4 {[%clk 0:02:59.5]} 1... e6 {[%clk 0:02:59.6]} 2. c4 {[%clk 0:02:59.2]}
2... d5 {[%clk 0:02:59.8]} 3. Nf3 {[%clk 0:02:58.8]} 3... Nf6 {[%clk 0:02:59.8]}
4. g3 {[%clk 0:02:58.4]} 4... Be7 {[%clk 0:03:00.1]} 5. Bg2 {[%clk 0:02:58]}
5... O-O {[%clk 0:03:00.4]} 6. O-O {[%clk 0:02:57.8]} 6... dxc4 {[%clk
0:03:00.5]} 7. Ne5 {[%clk 0:02:57.8]} 7... Nc6 {[%clk 0:02:59.5]} 8. Bxc6 {[%clk
0:02:57.8]} 8... bxc6 {[%clk 0:03:00.4]} 9. Nxc6 {[%clk 0:02:57.7]} 9... Qe8
{[%clk 0:03:00.7]} 10. Nxe7+ {[%clk 0:02:57.8]} 10... Qxe7 {[%clk 0:03:01.6]}
11. Nc3 {[%clk 0:02:57.5]} 11... c5 {[%clk 0:02:50.4]} 12. dxc5 {[%clk
0:02:54.9]} 12... Qxc5 {[%clk 0:02:51.3]} 13. Be3 {[%clk 0:02:54.2]} 13... Qc6
{[%clk 0:02:48.5]} 14. Qa4 {[%clk 0:02:53.4]} 14... Bb7 {[%clk 0:02:44]} 15.
Qxc6 {[%clk 0:02:49.8]} 15... Bxc6 {[%clk 0:02:44.9]} 16. Rfd1 {[%clk
0:02:48.3]} 16... Nd5 {[%clk 0:02:30.8]} 17. Rd4 {[%clk 0:02:48]} 17... Nxc3
{[%clk 0:02:28.7]} 18. bxc3 {[%clk 0:02:47.5]} 18... Bd5 {[%clk 0:02:26.3]} 19.
Rad1 {[%clk 0:02:41.2]} 19... a5 {[%clk 0:02:23.9]} 20. Bc1 {[%clk 0:02:36.2]}
20... f5 {[%clk 0:02:14.1]} 21. Bf4 {[%clk 0:02:29.5]} 21... Rf7 {[%clk
0:01:58.3]} 22. f3 {[%clk 0:02:24.2]} 22... Rc8 {[%clk 0:01:42.5]} 23. Be5
{[%clk 0:01:57.5]} 23... h6 {[%clk 0:01:33.6]} 24. Rb1 {[%clk 0:01:44.7]} 24...
a4 {[%clk 0:01:07.1]} 25. a3 {[%clk 0:01:34.7]} 25... Kh7 {[%clk 0:00:51.6]} 26.
Rb4 {[%clk 0:01:10.3]} 26... Ra7 {[%clk 0:00:44.4]} 27. e4 {[%clk 0:01:07.1]}
27... fxe4 {[%clk 0:00:45.3]} 28. fxe4 {[%clk 0:01:06.7]} 28... Ba8 {[%clk
0:00:43.8]} 29. Rbxc4 {[%clk 0:01:00.2]} 29... Rxc4 {[%clk 0:00:30.7]} 30. Rxc4
{[%clk 0:00:59.9]} 30... Ra5 {[%clk 0:00:27.4]} 31. Bd6 {[%clk 0:00:53.8]} 31...
e5 {[%clk 0:00:20.8]} 32. Kf2 {[%clk 0:00:44.2]} 32... Ra6 {[%clk 0:00:18.8]}
33. Bxe5 {[%clk 0:00:42.3]} 33... Re6 {[%clk 0:00:19.2]} 34. Rc5 {[%clk
0:00:40.3]} 34... Bxe4 {[%clk 0:00:18.3]} 35. Ke3 {[%clk 0:00:39.7]} 35... Rc6
{[%clk 0:00:16.1]} 36. Ra5 {[%clk 0:00:31.3]} 36... Bc2 {[%clk 0:00:14.2]} 37.
Kd4 {[%clk 0:00:30.4]} 37... Bb3 {[%clk 0:00:10.8]} 38. h4 {[%clk 0:00:28.9]}
38... Rc4+ {[%clk 0:00:11.2]} 39. Kd3 {[%clk 0:00:28]} 39... Rg4 {[%clk
0:00:11.9]} 40. Ra7 {[%clk 0:00:26.8]} 40... Bc4+ {[%clk 0:00:11.9]} 41. Ke3
{[%clk 0:00:26.4]} 41... Bb3 {[%clk 0:00:12.8]} 42. Bf4 {[%clk 0:00:26.3]} 42...
Rg6 {[%clk 0:00:11.2]} 43. Rc7 {[%clk 0:00:25.1]} 43... Re6+ {[%clk 0:00:10.9]}
44. Kd4 {[%clk 0:00:25.3]} 44... Kg6 {[%clk 0:00:11]} 45. Be5 {[%clk 0:00:25.2]}
45... Kf5 {[%clk 0:00:11.2]} 46. Rf7+ {[%clk 0:00:24.2]} 46... Kg4 {[%clk
0:00:10.6]} 47. Rxg7+ {[%clk 0:00:24.3]} 47... Kh3 {[%clk 0:00:10.9]} 48. Ra7
{[%clk 0:00:19.8]} 48... Rc6 {[%clk 0:00:10.6]} 49. Ra5 {[%clk 0:00:19.4]} 49...
Rc4+ {[%clk 0:00:10.6]} 50. Kd3 {[%clk 0:00:19.7]} 50... Rg4 {[%clk 0:00:09]}
51. Bf4 {[%clk 0:00:19.7]} 51... Rg6 {[%clk 0:00:08.6]} 52. c4 {[%clk
0:00:18.4]} 52... Rc6 {[%clk 0:00:08.7]} 53. c5 {[%clk 0:00:18.5]} 53... h5
{[%clk 0:00:09.1]} 54. Kd4 {[%clk 0:00:18.7]} 54... Kg4 {[%clk 0:00:09.2]} 55.
Rb5 {[%clk 0:00:18.9]} 55... Kf5 {[%clk 0:00:08.8]} 56. Rb6 {[%clk 0:00:19.2]}
56... Rc8 {[%clk 0:00:09.1]} 57. Rh6 {[%clk 0:00:19]} 57... Kg4 {[%clk
0:00:08.8]} 58. Rg6+ {[%clk 0:00:18.8]} 58... Kh3 {[%clk 0:00:07.3]} 59. c6
{[%clk 0:00:18.4]} 59... Bc2 {[%clk 0:00:06.4]} 60. Rh6 {[%clk 0:00:18.5]} 60...
Kg4 {[%clk 0:00:06]} 61. c7 {[%clk 0:00:18.5]} 61... Bf5 {[%clk 0:00:06.3]} 62.
Rb6 {[%clk 0:00:18.4]} 62... Re8 {[%clk 0:00:06.4]} 63. Rb8 {[%clk 0:00:18]}
63... Bc8 {[%clk 0:00:06.8]} 64. Kc5 {[%clk 0:00:17.8]} 64... Rg8 {[%clk
0:00:06.8]} 65. Kb6 {[%clk 0:00:17.2]} 65... Re8 {[%clk 0:00:06.5]} 66. Rxc8
{[%clk 0:00:16.5]} 66... Rxc8 {[%clk 0:00:07.4]} 67. Kb7 {[%clk 0:00:16.7]}
67... Re8 {[%clk 0:00:07.8]} 68. c8=Q+ {[%clk 0:00:15.1]} 68... Rxc8 {[%clk
0:00:07.7]} 69. Kxc8 {[%clk 0:00:15.1]} 69... Kf5 {[%clk 0:00:08.6]} 70. Kc7
{[%clk 0:00:15.1]} 70... Ke4 {[%clk 0:00:09.5]} 71. Kb6 {[%clk 0:00:15.2]} 71...
Kd3 {[%clk 0:00:10.4]} 72. Kb5 {[%clk 0:00:15.3]} 72... Kc2 {[%clk 0:00:10.3]}
73. Kxa4 {[%clk 0:00:15.5]} 73... Kc3 {[%clk 0:00:11.2]} 74. Kb5 {[%clk
0:00:15.5]} 74... Kd4 {[%clk 0:00:12.1]} 75. a4 {[%clk 0:00:15.7]} 75... Kd5
{[%clk 0:00:13]} 76. a5 {[%clk 0:00:15.9]} 76... Ke6 {[%clk 0:00:13.9]} 77. a6
{[%clk 0:00:16.2]} 77... Kf5 {[%clk 0:00:14.8]} 78. a7 {[%clk 0:00:16.3]} 78...
Kg4 {[%clk 0:00:15.7]} 79. a8=Q {[%clk 0:00:15.9]} 79... Kh3 {[%clk 0:00:16.6]}
80. Qf3 {[%clk 0:00:15.1]} 80... Kh2 {[%clk 0:00:17]} 81. g4+ {[%clk 0:00:14.8]}
81... Kg1 {[%clk 0:00:17.2]} 82. Qg3+ {[%clk 0:00:13.3]} 82... Kh1 {[%clk
0:00:16.9]} 83. Qf3+ {[%clk 0:00:12.5]} 83... Kg1 {[%clk 0:00:17]} 84. Qe2
{[%clk 0:00:11.9]} 84... hxg4 {[%clk 0:00:15.8]} 85. Bg3 {[%clk 0:00:11.4]}
85... Kh1 {[%clk 0:00:14.9]} 86. Qh2# {[%clk 0:00:11.4]} 1-0

[Event "*** SCC Grand Prix: Titled Tuesday Blitz"]
[Site "Chess.com"]
[Date "2020.06.09"]
[Round "1"]
[White "LuckSlayeer"]
[Black "rasmussvane"]
[Result "1-0"]
[WhiteElo "2459"]
[BlackElo "2885"]
[TimeControl "180+1"]
[EndTime "9:09:18 PDT"]
[Termination "LuckSlayeer won by resignation"]

1. Nf3 {[%clk 0:03:00.9]} 1... d5 {[%clk 0:02:59.4]} 2. g3 {[%clk 0:02:54.8]}
2... g6 {[%clk 0:02:59.4]} 3. Bg2 {[%clk 0:02:55.4]} 3... Bg7 {[%clk 0:02:59.9]}
4. d4 {[%clk 0:02:55.8]} 4... Nd7 {[%clk 0:03:00.3]} 5. O-O {[%clk 0:02:56.1]}
5... Ngf6 {[%clk 0:03:00.8]} 6. c3 {[%clk 0:02:54.3]} 6... O-O {[%clk 0:03:01]}
7. Re1 {[%clk 0:02:53.9]} 7... c5 {[%clk 0:03:00.7]} 8. Bf4 {[%clk 0:02:49.7]}
8... b6 {[%clk 0:03:00.9]} 9. Ne5 {[%clk 0:02:48.6]} 9... Bb7 {[%clk 0:03:00.4]}
10. Nxd7 {[%clk 0:02:42.6]} 10... Qxd7 {[%clk 0:03:01.3]} 11. Nd2 {[%clk
0:02:39.8]} 11... Rac8 {[%clk 0:02:57.1]} 12. Be5 {[%clk 0:02:25.1]} 12... Rfd8
{[%clk 0:02:56.8]} 13. Nf3 {[%clk 0:02:23.7]} 13... Bh6 {[%clk 0:02:55.3]} 14.
Bxf6 {[%clk 0:02:14.5]} 14... exf6 {[%clk 0:02:54.5]} 15. e3 {[%clk 0:02:15.4]}
15... Bg7 {[%clk 0:02:49.1]} 16. Nd2 {[%clk 0:02:14.3]} 16... h5 {[%clk
0:02:45.7]} 17. h4 {[%clk 0:02:11.3]} 17... f5 {[%clk 0:02:38.9]} 18. Nf3 {[%clk
0:02:07.2]} 18... Bf6 {[%clk 0:02:38.4]} 19. Qd3 {[%clk 0:01:58.8]} 19... Kg7
{[%clk 0:02:38.4]} 20. Rad1 {[%clk 0:01:56.4]} 20... c4 {[%clk 0:02:38.7]} 21.
Qc2 {[%clk 0:01:53.5]} 21... Qd6 {[%clk 0:02:37.7]} 22. Nh2 {[%clk 0:01:41]}
22... b5 {[%clk 0:02:36.8]} 23. a3 {[%clk 0:01:33.6]} 23... a5 {[%clk
0:02:36.8]} 24. Nf3 {[%clk 0:01:09.3]} 24... b4 {[%clk 0:02:33.2]} 25. axb4
{[%clk 0:01:10.2]} 25... axb4 {[%clk 0:02:34.1]} 26. Ra1 {[%clk 0:01:10.6]}
26... Ra8 {[%clk 0:02:33.9]} 27. Nd2 {[%clk 0:01:06.3]} 27... b3 {[%clk
0:02:29.5]} 28. Qb1 {[%clk 0:01:00.1]} 28... Qb6 {[%clk 0:02:23.9]} 29. Qd1
{[%clk 0:00:37.1]} 29... Re8 {[%clk 0:02:22.2]} 30. Qf3 {[%clk 0:00:30.6]} 30...
Ra2 {[%clk 0:02:19.3]} 31. Rab1 {[%clk 0:00:25.1]} 31... Qc7 {[%clk 0:02:18.9]}
32. Qe2 {[%clk 0:00:17.2]} 32... Bc6 {[%clk 0:02:16.7]} 33. Qf1 {[%clk
0:00:17.1]} 33... Re6 {[%clk 0:02:13.3]} 34. Bf3 {[%clk 0:00:17]} 34... Qe7
{[%clk 0:02:12.5]} 35. Qg2 {[%clk 0:00:16.8]} 35... Qd6 {[%clk 0:02:11.2]} 36.
Qh1 {[%clk 0:00:15.8]} 36... Bd8 {[%clk 0:02:05.7]} 37. Nxc4 {[%clk 0:00:14.8]}
37... dxc4 {[%clk 0:02:04.3]} 38. d5 {[%clk 0:00:15.3]} 38... Re5 {[%clk
0:01:36.9]} 39. dxc6 {[%clk 0:00:14.4]} 39... Bb6 {[%clk 0:01:37.4]} 40. Red1
{[%clk 0:00:12.9]} 40... Qc5 {[%clk 0:01:35]} 41. Rd5 {[%clk 0:00:07.8]} 41...
Rxd5 {[%clk 0:01:34.7]} 42. Bxd5 {[%clk 0:00:08.7]} 42... Qd6 {[%clk 0:01:33.7]}
43. Qf3 {[%clk 0:00:08.5]} 43... Qc5 {[%clk 0:01:23.5]} 44. Qg2 {[%clk
0:00:06.1]} 44... Bc7 {[%clk 0:01:23.3]} 45. Qf3 {[%clk 0:00:06.1]} 45... Be5
{[%clk 0:01:23.4]} 46. Kg2 {[%clk 0:00:05.9]} 46... Bf6 {[%clk 0:01:21.7]} 47.
Kg1 {[%clk 0:00:03.7]} 47... Ra4 {[%clk 0:01:09.1]} 48. Qg2 {[%clk 0:00:04]}
48... Qa7 {[%clk 0:01:08.7]} 49. Bf3 {[%clk 0:00:04.2]} 49... Be5 {[%clk
0:01:06.6]} 50. Qf1 {[%clk 0:00:03.8]} 50... Qc5 {[%clk 0:01:02.3]} 51. Qd1
{[%clk 0:00:03.9]} 51... Ra5 {[%clk 0:00:56]} 52. Kg2 {[%clk 0:00:04.4]} 52...
Ra7 {[%clk 0:00:49.7]} 53. Qd5 {[%clk 0:00:04.5]} 53... Ra5 {[%clk 0:00:46.9]}
54. Qxc5 {[%clk 0:00:04.4]} 54... Rxc5 {[%clk 0:00:47.8]} 55. Rd1 {[%clk
0:00:04.8]} 55... Kf6 {[%clk 0:00:41]} 56. Rd5 {[%clk 0:00:04.9]} 56... Rxd5
{[%clk 0:00:10]} 57. Bxd5 {[%clk 0:00:05.8]} 57... Ke7 {[%clk 0:00:09.7]} 58.
Bxc4 {[%clk 0:00:05.3]} 58... f6 {[%clk 0:00:09.9]} 59. Bxb3 {[%clk 0:00:05.4]}
59... Kd6 {[%clk 0:00:10.4]} 60. Ba4 {[%clk 0:00:05.7]} 60... g5 {[%clk
0:00:10.2]} 61. hxg5 {[%clk 0:00:04]} 61... fxg5 {[%clk 0:00:11.1]} 62. f4
{[%clk 0:00:03.7]} 62... Bf6 {[%clk 0:00:10.9]} 63. fxg5 {[%clk 0:00:03.9]}
63... Bxg5 {[%clk 0:00:11.8]} 64. Kf3 {[%clk 0:00:04.5]} 64... Kc7 {[%clk
0:00:09.5]} 65. b4 {[%clk 0:00:04.6]} 65... Be7 {[%clk 0:00:08.5]} 66. b5 {[%clk
0:00:04.4]} 66... Bd6 {[%clk 0:00:08.3]} 67. Bb3 {[%clk 0:00:04]} 67... Be5
{[%clk 0:00:07.1]} 68. Bc4 {[%clk 0:00:04.3]} 68... Bxc3 {[%clk 0:00:06.6]} 69.
Kf4 {[%clk 0:00:04.9]} 69... Be1 {[%clk 0:00:04.1]} 70. Be6 {[%clk 0:00:04.1]}
70... Kb6 {[%clk 0:00:01.9]} 71. Bxf5 {[%clk 0:00:04.5]} 71... Bb4 {[%clk
0:00:02.5]} 72. Bd3 {[%clk 0:00:04.6]} 72... Bd6+ {[%clk 0:00:02.2]} 73. Kf3
{[%clk 0:00:04.6]} 73... Kc5 {[%clk 0:00:02.8]} 74. e4 {[%clk 0:00:05]} 74...
Bc7 {[%clk 0:00:03.4]} 75. Be2 {[%clk 0:00:04.8]} 75... Kd4 {[%clk 0:00:03.6]}
76. Bf1 {[%clk 0:00:05]} 76... Ke5 {[%clk 0:00:03]} 77. Bh3 {[%clk 0:00:05.2]}
77... Bb6 {[%clk 0:00:03.4]} 78. Bd7 {[%clk 0:00:05.1]} 78... Bd8 {[%clk
0:00:03.4]} 79. Be8 {[%clk 0:00:05.4]} 79... Kd6 {[%clk 0:00:01.9]} 80. Bxh5
{[%clk 0:00:04.7]} 80... Kc5 {[%clk 0:00:02.8]} 81. Be8 {[%clk 0:00:04.6]} 81...
Bc7 {[%clk 0:00:03.7]} 82. Bd7 {[%clk 0:00:04.7]} 82... Kd6 {[%clk 0:00:04.6]}
83. g4 {[%clk 0:00:05.2]} 83... Bb6 {[%clk 0:00:05.5]} 84. g5 {[%clk 0:00:05.5]}
84... Ke7 {[%clk 0:00:06.4]} 85. Kf4 {[%clk 0:00:05.8]} 85... Bc7+ {[%clk
0:00:06.5]} 86. Kf5 {[%clk 0:00:06.2]} 86... Kd6 {[%clk 0:00:06.8]} 87. g6
{[%clk 0:00:06.6]} 87... Kc5 {[%clk 0:00:07.7]} 88. g7 {[%clk 0:00:07]} 88...
Be5 {[%clk 0:00:08.2]} 89. g8=Q {[%clk 0:00:07.2]} 89... Bg7 {[%clk 0:00:09.1]}
1-0

[Event "*** SCC Grand Prix: Titled Tuesday Blitz"]
[Site "Chess.com"]
[Date "2020.06.09"]
[Round "1"]
[White "SoltaniciR"]
[Black "earling8018"]
[Result "1/2-1/2"]
[WhiteElo "2497"]
[BlackElo "2059"]
[TimeControl "180+1"]
[EndTime "9:09:24 PDT"]
[Termination "Game drawn by stalemate"]

1. e4 {[%clk 0:03:00.9]} 1... e5 {[%clk 0:02:59.4]} 2. Nf3 {[%clk 0:03:00.3]}
2... Nc6 {[%clk 0:02:59.6]} 3. Bb5 {[%clk 0:03:00.5]} 3... a6 {[%clk 0:02:58.4]}
4. Ba4 {[%clk 0:03:00.5]} 4... Nf6 {[%clk 0:02:57]} 5. O-O {[%clk 0:03:00.6]}
5... Be7 {[%clk 0:02:57]} 6. Re1 {[%clk 0:03:00.3]} 6... b5 {[%clk 0:02:56.7]}
7. Bb3 {[%clk 0:03:00.5]} 7... d6 {[%clk 0:02:56.7]} 8. c3 {[%clk 0:03:00.6]}
8... O-O {[%clk 0:02:57]} 9. h3 {[%clk 0:03:00.7]} 9... Nd7 {[%clk 0:02:52.7]}
10. d4 {[%clk 0:02:58.2]} 10... Na5 {[%clk 0:02:53.1]} 11. Bc2 {[%clk
0:02:56.7]} 11... c5 {[%clk 0:02:51.7]} 12. a4 {[%clk 0:02:56.5]} 12... Bb7
{[%clk 0:02:47.7]} 13. d5 {[%clk 0:02:50.4]} 13... Nf6 {[%clk 0:02:37]} 14. b3
{[%clk 0:02:45.3]} 14... Qc7 {[%clk 0:02:25.3]} 15. Nbd2 {[%clk 0:02:43.3]}
15... Rfb8 {[%clk 0:02:16.8]} 16. Bd3 {[%clk 0:02:22.3]} 16... bxa4 {[%clk
0:02:12.3]} 17. Rxa4 {[%clk 0:02:19.7]} 17... Bc8 {[%clk 0:01:34.6]} 18. Qc2
{[%clk 0:02:19.3]} 18... Bd7 {[%clk 0:01:31.8]} 19. Ra3 {[%clk 0:02:18.4]} 19...
Bb5 {[%clk 0:01:22.6]} 20. c4 {[%clk 0:02:05.7]} 20... Bd7 {[%clk 0:01:21.3]}
21. Bb2 {[%clk 0:02:06.2]} 21... Nb7 {[%clk 0:01:20.2]} 22. Bc3 {[%clk
0:02:03.5]} 22... a5 {[%clk 0:01:11.2]} 23. Rea1 {[%clk 0:02:03]} 23... Bd8
{[%clk 0:01:08.4]} 24. Qa2 {[%clk 0:01:51.6]} 24... Qc8 {[%clk 0:01:06.1]} 25.
Kh2 {[%clk 0:01:49.7]} 25... Bb6 {[%clk 0:01:05.3]} 26. Rg1 {[%clk 0:01:43.3]}
26... Qc7 {[%clk 0:01:04]} 27. g4 {[%clk 0:01:42.6]} 27... Rf8 {[%clk
0:01:03.6]} 28. Nf1 {[%clk 0:01:41.8]} 28... g6 {[%clk 0:01:03.4]} 29. Ng3
{[%clk 0:01:37.8]} 29... Kh8 {[%clk 0:00:47.5]} 30. Bd2 {[%clk 0:01:37.5]} 30...
Ng8 {[%clk 0:00:46.7]} 31. Be3 {[%clk 0:01:32.3]} 31... f6 {[%clk 0:00:46.7]}
32. Qd2 {[%clk 0:01:21.4]} 32... Nd8 {[%clk 0:00:46.2]} 33. Rg2 {[%clk
0:01:16.9]} 33... Nf7 {[%clk 0:00:46.1]} 34. Ra1 {[%clk 0:01:16.1]} 34... a4
{[%clk 0:00:46.3]} 35. bxa4 {[%clk 0:01:09.3]} 35... Rxa4 {[%clk 0:00:47.2]} 36.
Rxa4 {[%clk 0:01:06.4]} 36... Bxa4 {[%clk 0:00:48.1]} 37. Rg1 {[%clk 0:01:05.5]}
37... Ba5 {[%clk 0:00:45.7]} 38. Qa2 {[%clk 0:01:03.6]} 38... Bd7 {[%clk
0:00:44.2]} 39. Ra1 {[%clk 0:01:01.3]} 39... Bc3 {[%clk 0:00:42]} 40. Qa7 {[%clk
0:01:01]} 40... Rc8 {[%clk 0:00:39.1]} 41. Ne2 {[%clk 0:00:59]} 41... Bxa1
{[%clk 0:00:36.5]} 42. Qxa1 {[%clk 0:00:57.4]} 42... Qb7 {[%clk 0:00:35.9]} 43.
Ng3 {[%clk 0:00:52]} 43... Rb8 {[%clk 0:00:35.8]} 44. Kg2 {[%clk 0:00:45.5]}
44... Kg7 {[%clk 0:00:36]} 45. g5 {[%clk 0:00:42.9]} 45... fxg5 {[%clk
0:00:35.3]} 46. Nxg5 {[%clk 0:00:43.8]} 46... Nxg5 {[%clk 0:00:35.6]} 47. Bxg5
{[%clk 0:00:44.1]} 47... Qc8 {[%clk 0:00:32.8]} 48. h4 {[%clk 0:00:42]} 48...
Bg4 {[%clk 0:00:31.6]} 49. Qa7+ {[%clk 0:00:34.1]} 49... Rb7 {[%clk 0:00:31.2]}
50. Qa5 {[%clk 0:00:33.9]} 50... Qf8 {[%clk 0:00:30]} 51. Be2 {[%clk 0:00:30.4]}
51... Bxe2 {[%clk 0:00:28.7]} 52. Nxe2 {[%clk 0:00:31.3]} 52... Nf6 {[%clk
0:00:28.8]} 53. Ng3 {[%clk 0:00:28.7]} 53... Ng4 {[%clk 0:00:25.6]} 54. f3
{[%clk 0:00:27.8]} 54... Rb2+ {[%clk 0:00:23.7]} 55. Kg1 {[%clk 0:00:25.6]}
55... Qxf3 {[%clk 0:00:23.5]} 56. Qc7+ {[%clk 0:00:24.5]} 56... Qf7 {[%clk
0:00:23]} 57. Bd8 {[%clk 0:00:14.7]} 57... Qxc7 {[%clk 0:00:16.9]} 58. Bxc7
{[%clk 0:00:14.1]} 58... Rc2 {[%clk 0:00:17.3]} 59. Bxd6 {[%clk 0:00:13.8]}
59... Rxc4 {[%clk 0:00:17]} 60. Kg2 {[%clk 0:00:13.7]} 60... Nf6 {[%clk
0:00:16.9]} 61. Bxe5 {[%clk 0:00:13]} 61... Kf7 {[%clk 0:00:16.1]} 62. Kf3
{[%clk 0:00:12.8]} 62... h5 {[%clk 0:00:14.5]} 63. Nf1 {[%clk 0:00:11.1]} 63...
Nxe4 {[%clk 0:00:12.8]} 64. Ne3 {[%clk 0:00:11.1]} 64... Ra4 {[%clk 0:00:11.8]}
65. Bf4 {[%clk 0:00:08.5]} 65... Nf6 {[%clk 0:00:10.7]} 66. d6 {[%clk
0:00:06.7]} 66... Rd4 {[%clk 0:00:10.4]} 67. Be5 {[%clk 0:00:06.5]} 67... Rd3
{[%clk 0:00:09.9]} 68. Ke2 {[%clk 0:00:06]} 68... Rxe3+ {[%clk 0:00:08.4]} 69.
Kxe3 {[%clk 0:00:06.1]} 69... Ng4+ {[%clk 0:00:08.5]} 70. Ke4 {[%clk 0:00:06.5]}
70... Nxe5 {[%clk 0:00:09]} 71. Kxe5 {[%clk 0:00:06.5]} 71... c4 {[%clk
0:00:09.3]} 72. Kd4 {[%clk 0:00:05.1]} 72... Ke6 {[%clk 0:00:09.7]} 73. Kxc4
{[%clk 0:00:05.4]} 73... Kxd6 {[%clk 0:00:10.4]} 74. Kd4 {[%clk 0:00:06]} 74...
Ke6 {[%clk 0:00:10.9]} 75. Ke4 {[%clk 0:00:06.3]} 75... Kf6 {[%clk 0:00:09.3]}
76. Kf4 {[%clk 0:00:06.5]} 76... g5+ {[%clk 0:00:07.6]} 77. hxg5+ {[%clk
0:00:06.1]} 77... Kg6 {[%clk 0:00:08.1]} 78. Kg3 {[%clk 0:00:06]} 78... Kxg5
{[%clk 0:00:07]} 79. Kh3 {[%clk 0:00:06.2]} 79... h4 {[%clk 0:00:07.2]} 80. Kh2
{[%clk 0:00:06.4]} 80... Kg4 {[%clk 0:00:08.1]} 81. Kg2 {[%clk 0:00:06.8]} 81...
h3+ {[%clk 0:00:08.8]} 82. Kh2 {[%clk 0:00:07.1]} 82... Kh4 {[%clk 0:00:08.5]}
83. Kh1 {[%clk 0:00:08]} 83... Kg3 {[%clk 0:00:08.6]} 84. Kg1 {[%clk 0:00:08.2]}
84... h2+ {[%clk 0:00:08.9]} 85. Kh1 {[%clk 0:00:08.5]} 85... Kh3 {[%clk
0:00:09.4]} 1/2-1/2